fUST/lending_fUST_20240817
["ID","MTS","AMOUNT","RATE_DAILY","PERIOD"]
[335150098,1723890747622,-500.0,0.00029856,2]
[335150099,1723890747631,-296.9240659,0.00029856,2]
[335150100,1723890747641,-500.0,0.00029856,2]
[335150101,1723890747650,-500.0,0.00029856,2]
[335150102,1723890747660,-500.0,0.00029856,2]
[335150103,1723890747669,-765.7,0.00029856,2]
[335150104,1723890747679,-500.0,0.00029856,2]
[335150105,1723890747689,-500.0,0.00029856,2]
[335150106,1723890747699,-220.94795572,0.00029856,2]
[335150107,1723890747708,-500.0,0.00029856,2]
[335150108,1723890747718,-633.9,0.00029856,2]
[335150109,1723890747727,-500.0,0.00029856,2]
[335150110,1723890747744,-500.0,0.00029856,2]
[335150111,1723890747755,-521.11,0.00029856,2]
[335150112,1723890747764,-500.0,0.00029856,2]
[335150113,1723890747775,-500.0,0.00029856,2]
[335150114,1723890747784,-500.0,0.00029856,2]
[335150115,1723890747795,-500.0,0.00029856,2]
[335150116,1723890747804,-500.0,0.00029856,2]
[335150117,1723890747814,-775.16,0.00029856,2]
[335150118,1723890747824,-500.0,0.00029856,2]
[335150119,1723890747834,-571.1,0.00029856,2]
[335150120,1723890747844,-500.0,0.00029856,2]
[335150121,1723890747853,-668.62,0.00029856,2]
[335150122,1723890747862,-500.0,0.00029856,2]
[335150123,1723890747872,-731.12,0.00029856,2]
[335150124,1723890747882,-500.0,0.00029856,2]
[335150125,1723890747891,-632.17,0.00029856,2]
[335150126,1723890747900,-500.0,0.00029856,2]
[335150127,1723890747911,-593.02,0.00029856,2]
[335150128,1723890747921,-656.84,0.00029856,2]
[335150129,1723890747930,-633.28,0.00029856,2]
[335150130,1723890747939,-500.0,0.00029856,2]
[335150131,1723890747949,-521.1,0.00029856,2]
[335150132,1723890747959,-500.0,0.00029856,2]
[335150133,1723890747968,-280.91762964,0.00029856,2]
[335150134,1723890747978,-500.0,0.00029856,2]
[335150135,1723890748164,-583.40798673,0.00029856,2]
[335150136,1723890748174,-764.51,0.00029856,2]
[335150137,1723890748185,-500.0,0.00029856,2]
[335150138,1723890748197,-500.0,0.00029856,2]
[335150139,1723890748208,-625.26,0.00029856,2]
[335150140,1723890748219,-500.0,0.00029856,2]
[335150141,1723890748233,-625.29,0.00029856,2]
[335150142,1723890748246,-500.0,0.00029856,2]
[335150143,1723890748258,-1000.0,0.0002986,2]
[335150144,1723890748268,-500.0,0.00029863,2]
[335150145,1723890748278,-500.0,0.00029863,2]
[335150146,1723890748288,-500.0,0.00029863,2]
[335150147,1723890748300,-500.0,0.00029863,2]
[335150148,1723890748311,-500.0,0.00029863,2]
[335150149,1723890748324,-500.0,0.00029863,2]
[335150150,1723890748334,-500.0,0.00029863,2]
[335150151,1723890748345,-500.0,0.00029863,2]
[335150152,1723890748357,-500.0,0.00029863,2]
[335150153,1723890748369,-500.0,0.00029863,2]
[335150154,1723890748380,-523.60139331,0.00029863,2]
[335150155,1723890748390,-508.25061453,0.00029863,2]
[335150156,1723890748401,-500.0,0.00029863,2]
[335150157,1723890748414,-500.0,0.00029863,2]
[335150158,1723890748425,-500.0,0.00029863,2]
[335150159,1723890748438,-561.21,0.00029863,2]
[335150160,1723890748447,-500.0,0.00029863,2]
[335150161,1723890748457,-500.0,0.00029863,2]
[335150162,1723890748467,-500.0,0.00029863,2]
[335150163,1723890748481,-500.057896,0.00029863,2]
[335150164,1723890748492,-500.0,0.00029863,2]
[335150165,1723890748504,-500.0,0.00029863,2]
[335150166,1723890748515,-500.0,0.00029863,2]
[335150167,1723890748526,-500.0,0.00029863,2]
[335150168,1723890748537,-300.29197493,0.00029864,2]
[335150169,1723890748550,-21622.10405319,0.0002989,2]
[335150170,1723890748562,-209.01583363,0.00029892,2]
[335150171,1723890748573,-19032.14075,0.000299,14]
[335150172,1723890748583,-2000.0,0.000299,2]
[335150173,1723890748594,-172.67964134,0.0002994,2]
[335150174,1723890748605,-20611.2182427,0.0003,30]
[335150175,1723890748616,-151.0,0.0003,120]
[335150176,1723890748626,-151.0,0.0003,120]
[335150177,1723890748638,-500.0,0.0003013,2]
[335150178,1723890748651,-500.0,0.0003013,2]
[335150179,1723890748664,-500.0,0.0003013,2]
[335150180,1723890748675,-500.0,0.0003013,2]
[335150181,1723890748686,-501.40684913,0.0003013,2]
[335150182,1723890748696,-506.0989854,0.0003013,2]
[335150183,1723890748707,-500.0,0.0003013,2]
[335150184,1723890748719,-246.66122876,0.0003013,2]
[335150185,1723890748730,-500.0,0.0003013,2]
[335150186,1723890748741,-500.0,0.0003013,2]
[335150187,1723890748751,-500.0,0.0003013,2]
[335150188,1723890748763,-500.0,0.0003013,2]
[335150189,1723890748775,-501.54,0.0003013,2]
[335150190,1723890748786,-500.0,0.0003013,2]
[335150191,1723890748796,-500.0,0.0003013,2]
[335150192,1723890748807,-1683.39,0.0003013,2]
[335150193,1723890748818,-500.0,0.0003013,2]
[335150194,1723890748828,-315.83964841,0.0003013,2]
[335150195,1723890748838,-500.0,0.0003013,2]
[335150196,1723890748849,-427.42592298,0.0003013,2]
[335150197,1723890748860,-500.0,0.0003013,2]
[335150198,1723890748873,-500.0,0.0003013,2]
[335150199,1723890748884,-500.0,0.0003013,2]
[335150200,1723890748896,-500.0,0.0003013,2]
[335150201,1723890748906,-500.0,0.0003013,2]
[335150202,1723890748918,-500.0,0.0003013,2]
[335150203,1723890748929,-637.99853419,0.0003013,2]
[335150204,1723890748940,-500.0,0.0003013,2]
[335150205,1723890748951,-547.89,0.0003013,2]
[335150206,1723890748961,-500.0,0.0003013,2]
[335150207,1723890748971,-478.95682808,0.0003013,2]
[335150208,1723890748982,-500.0,0.0003013,2]
[335150209,1723890748993,-500.0,0.0003013,2]
[335150210,1723890749003,-500.0,0.0003013,2]
[335150211,1723890749015,-765.7,0.0003013,2]
[335150212,1723890749027,-500.0,0.0003013,2]
[335150213,1723890749039,-500.0,0.0003013,2]
[335150214,1723890749049,-500.0,0.0003013,2]
[335150215,1723890749059,-633.9,0.0003013,2]
[335150216,1723890749073,-500.0,0.0003013,2]
[335150217,1723890749083,-500.0,0.0003013,2]
[335150218,1723890749094,-521.11,0.0003013,2]
[335150219,1723890749105,-500.0,0.0003013,2]
[335150220,1723890749117,-500.0,0.0003013,2]
[335150221,1723890749128,-578.8715345,0.0003013,2]
[335150222,1723890749140,-500.0,0.0003013,2]
[335150223,1723890749152,-500.0,0.0003013,2]
[335150224,1723890749163,-775.16,0.0003013,2]
[335150225,1723890749174,-500.0,0.0003013,2]
[335150226,1723890749185,-571.1,0.0003013,2]
[335150227,1723890749195,-500.0,0.0003013,2]
[335150228,1723890749207,-668.62,0.0003013,2]
[335150229,1723890749219,-500.0,0.0003013,2]
[335150230,1723890749230,-731.12,0.0003013,2]
[335150231,1723890749242,-500.0,0.0003013,2]
[335150232,1723890749252,-632.17,0.0003013,2]
[335150233,1723890749265,-500.0,0.0003013,2]
[335150234,1723890749278,-593.02,0.0003013,2]
[335150235,1723890749291,-656.84,0.0003013,2]
[335150236,1723890749303,-633.28,0.0003013,2]
[335150237,1723890749312,-500.0,0.0003013,2]
[335150238,1723890749322,-521.1,0.0003013,2]
[335150239,1723890749333,-500.0,0.0003013,2]
[335150240,1723890749343,-500.0,0.0003013,2]
[335150241,1723890749353,-764.51,0.0003013,2]
[335150242,1723890749366,-500.0,0.0003013,2]
[335150243,1723890749376,-500.0,0.0003013,2]
[335150244,1723890749385,-625.26,0.0003013,2]
[335150245,1723890749395,-500.0,0.0003013,2]
[335150246,1723890749404,-625.29,0.0003013,2]
[335150247,1723890749414,-500.0,0.0003013,2]
[335150248,1723890749424,-500.0,0.00030136,2]
[335150249,1723890749434,-500.0,0.00030136,2]
[335150250,1723890749444,-500.0,0.00030136,2]
[335150251,1723890749455,-261.54306585,0.00030136,2]
[335150252,1723890749467,-500.0,0.00030136,2]
[335150253,1723890749476,-500.0,0.00030136,2]
[335150254,1723890749488,-500.0,0.00030136,2]
[335150255,1723890749498,-500.0,0.00030136,2]
[335150256,1723890749510,-500.0,0.00030136,2]
[335150257,1723890749521,-500.0,0.00030136,2]
[335150258,1723890749532,-500.0,0.00030136,2]
[335150259,1723890749543,-500.0,0.00030136,2]
[335150260,1723890749554,-500.0,0.00030136,2]
[335150261,1723890749565,-561.21,0.00030136,2]
[335150262,1723890749576,-624.00462649,0.00030136,2]
[335150263,1723890749587,-500.0,0.00030136,2]
[335150264,1723890749597,-500.0,0.00030136,2]
[335150265,1723890749608,-500.0,0.00030136,2]
[335150266,1723890749619,-500.0,0.00030136,2]
[335150267,1723890749630,-500.0,0.00030136,2]
[335150268,1723890749640,-500.0,0.00030136,2]
[335150269,1723890749651,-1000.0,0.00030136,2]
[335150270,1723890749663,-153.0,0.00030137,2]
[335150271,1723890749673,-306.0,0.00030274,2]
[335150272,1723890749683,-500.0,0.00030404,2]
[335150273,1723890749693,-500.0,0.00030404,2]
[335150274,1723890749704,-505.22233061,0.00030404,2]
[335150275,1723890749716,-500.0,0.00030404,2]
[335150276,1723890749728,-506.73512828,0.00030404,2]
[335150277,1723890749739,-500.0,0.00030404,2]
[335150278,1723890749750,-505.86050582,0.00030404,2]
[335150279,1723890749761,-514.71150401,0.00030404,2]
[335150280,1723890749771,-500.0,0.00030404,2]
[335150281,1723890749784,-501.54,0.00030404,2]
[335150282,1723890749793,-500.0,0.00030404,2]
[335150283,1723890749803,-500.0,0.00030404,2]
[335150284,1723890749813,-1683.39,0.00030404,2]
[335150285,1723890749823,-500.0,0.00030404,2]
[335150286,1723890749832,-506.86716331,0.00030404,2]
[335150287,1723890749842,-503.58231798,0.00030404,2]
[335150288,1723890749852,-500.0,0.00030404,2]
[335150289,1723890749861,-504.89760227,0.00030404,2]
[335150290,1723890749871,-500.0,0.00030404,2]
[335150291,1723890749881,-500.0,0.00030404,2]
[335150292,1723890749891,-500.0,0.00030404,2]
[335150293,1723890749901,-500.0,0.00030404,2]
[335150294,1723890749910,-547.89,0.00030404,2]
[335150295,1723890749920,-500.0,0.00030404,2]
[335150296,1723890749929,-500.0,0.00030404,2]
[335150297,1723890749938,-500.0,0.00030404,2]
[335150298,1723890749948,-500.0,0.00030404,2]
[335150299,1723890749958,-765.7,0.00030404,2]
[335150300,1723890749968,-500.0,0.00030404,2]
[335150301,1723890749978,-500.0,0.00030404,2]
[335150302,1723890749989,-500.0,0.00030404,2]
[335150303,1723890750000,-633.9,0.00030404,2]
[335150304,1723890750010,-500.0,0.00030404,2]
[335150305,1723890750022,-500.0,0.00030404,2]
[335150306,1723890750033,-521.11,0.00030404,2]
[335150307,1723890750044,-500.0,0.00030404,2]
[335150308,1723890750055,-500.0,0.00030404,2]
[335150309,1723890750067,-500.0,0.00030404,2]
[335150310,1723890750081,-500.0,0.00030404,2]
[335150311,1723890750092,-775.16,0.00030404,2]
[335150312,1723890750103,-500.0,0.00030404,2]
[335150313,1723890750116,-571.1,0.00030404,2]
[335150314,1723890750126,-500.0,0.00030404,2]
[335150315,1723890750135,-668.62,0.00030404,2]
[335150316,1723890750147,-500.0,0.00030404,2]
[335150317,1723890750159,-731.12,0.00030404,2]
[335150318,1723890750170,-203.52777845,0.00030404,2]
[335150319,1723890750181,-632.17,0.00030404,2]
[335150320,1723890750191,-500.0,0.00030404,2]
[335150321,1723890750203,-593.02,0.00030404,2]
[335150322,1723890750214,-656.84,0.00030404,2]
[335150323,1723890750225,-633.28,0.00030404,2]
[335150324,1723890750237,-500.0,0.00030404,2]
[335150325,1723890750248,-521.1,0.00030404,2]
[335150326,1723890750260,-500.0,0.00030404,2]
[335150327,1723890750271,-500.0,0.00030404,2]
[335150328,1723890750281,-764.51,0.00030404,2]
[335150329,1723890750292,-500.0,0.00030404,2]
[335150330,1723890750302,-500.0,0.00030404,2]
[335150331,1723890750312,-625.26,0.00030404,2]
[335150332,1723890750321,-500.0,0.00030404,2]
[335150333,1723890750331,-625.29,0.00030404,2]
[335150334,1723890750341,-500.0,0.0003041,2]
[335150335,1723890750351,-500.0,0.0003041,2]
[335150336,1723890750360,-500.0,0.0003041,2]
[335150337,1723890750370,-500.0,0.0003041,2]
[335150338,1723890750380,-500.0,0.0003041,2]
[335150339,1723890750391,-500.0,0.0003041,2]
[335150340,1723890750401,-500.0,0.0003041,2]
[335150341,1723890750412,-374.49737292,0.0003041,2]
[335150342,1723890750421,-500.0,0.0003041,2]
[335150343,1723890750431,-500.0,0.0003041,2]
[335150344,1723890750442,-500.0,0.0003041,2]
[335150345,1723890750451,-561.21,0.0003041,2]
[335150346,1723890750461,-500.0,0.0003041,2]
[335150347,1723890750471,-500.0,0.0003041,2]
[335150348,1723890750481,-500.0,0.0003041,2]
[335150349,1723890750490,-500.0,0.0003041,2]
[335150350,1723890750499,-500.0,0.0003041,2]
[335150351,1723890750509,-500.0,0.0003041,2]
[335150352,1723890750520,-155.0,0.0003055,23]
[335150353,1723890750531,-464.56715476,0.00030678,2]
[335150354,1723890750543,-500.0,0.00030678,2]
[335150355,1723890750554,-505.66099566,0.00030678,2]
[335150356,1723890750565,-500.0,0.00030678,2]
[335150357,1723890750577,-336.99047972,0.00030678,2]
[335150358,1723890750587,-501.54,0.00030678,2]
[335150359,1723890750599,-500.0,0.00030678,2]
[335150360,1723890750611,-381.00220687,0.00030678,2]
[335150361,1723890750622,-1683.39,0.00030678,2]
[335150362,1723890750635,-500.0,0.00030678,2]
[335150363,1723890750647,-506.23434971,0.00030678,2]
[335150364,1723890750658,-500.0,0.00030678,2]
[335150365,1723890750670,-504.63429681,0.00030678,2]
[335150366,1723890750682,-508.31808959,0.00030678,2]
[335150367,1723890750693,-500.0,0.00030678,2]
[335150368,1723890750704,-547.89,0.00030678,2]
[335150369,1723890750714,-505.75861225,0.00030678,2]
[335150370,1723890750726,-500.0,0.00030678,2]
[335150371,1723890750739,-500.0,0.00030678,2]
[335150372,1723890750750,-500.0,0.00030678,2]
[335150373,1723890750760,-765.7,0.00030678,2]
[335150374,1723890750771,-500.0,0.00030678,2]
[335150375,1723890750781,-500.0,0.00030678,2]
[335150376,1723890750792,-500.0,0.00030678,2]
[335150377,1723890750804,-633.9,0.00030678,2]
[335150378,1723890750816,-500.0,0.00030678,2]
[335150379,1723890750825,-500.0,0.00030678,2]
[335150380,1723890750835,-521.11,0.00030678,2]
[335150381,1723890750845,-500.0,0.00030678,2]
[335150382,1723890750856,-500.0,0.00030678,2]
[335150383,1723890750866,-500.0,0.00030678,2]
[335150384,1723890750876,-500.0,0.00030678,2]
[335150385,1723890750885,-775.16,0.00030678,2]
[335150386,1723890750895,-500.0,0.00030678,2]
[335150387,1723890750964,-571.1,0.00030678,2]
[335150388,1723890750976,-500.0,0.00030678,2]
[335150389,1723890750987,-668.62,0.00030678,2]
[335150390,1723890750998,-500.0,0.00030678,2]
[335150391,1723890751009,-731.12,0.00030678,2]
[335150392,1723890751021,-632.17,0.00030678,2]
[335150393,1723890751032,-500.0,0.00030678,2]
[335150394,1723890751043,-593.02,0.00030678,2]
[335150395,1723890751053,-656.84,0.00030678,2]
[335150396,1723890751065,-633.28,0.00030678,2]
[335150397,1723890751078,-500.0,0.00030678,2]
[335150398,1723890751091,-521.1,0.00030678,2]
[335150399,1723890751101,-500.0,0.00030678,2]
[335150400,1723890751112,-500.0,0.00030678,2]
[335150401,1723890751122,-764.51,0.00030678,2]
[335150402,1723890751133,-500.0,0.00030678,2]
[335150403,1723890751143,-500.0,0.00030678,2]
[335150404,1723890751155,-625.26,0.00030678,2]
[335150405,1723890751166,-500.0,0.00030678,2]
[335150406,1723890751177,-625.29,0.00030678,2]
[335150407,1723890751187,-500.0,0.00030684,2]
[335150408,1723890751198,-500.0,0.00030684,2]
[335150409,1723890751208,-500.0,0.00030684,2]
[335150410,1723890751219,-500.0,0.00030684,2]
[335150411,1723890751231,-500.0,0.00030684,2]
[335150412,1723890751242,-500.0,0.00030684,2]
[335150413,1723890751253,-500.0,0.00030684,2]
[335150414,1723890751264,-500.0,0.00030684,2]
[335150415,1723890751275,-500.0,0.00030684,2]
[335150416,1723890751286,-500.0,0.00030684,2]
[335150417,1723890751297,-561.21,0.00030684,2]
[335150418,1723890751307,-500.0,0.00030684,2]
[335150419,1723890751317,-500.0,0.00030684,2]
[335150420,1723890751327,-500.0,0.00030684,2]
[335150421,1723890751338,-500.0,0.00030684,2]
[335150422,1723890751347,-500.0,0.00030684,2]
[335150423,1723890751359,-500.0,0.00030684,2]
[335150424,1723890751370,-1000.0,0.00030684,2]
[335150425,1723890751381,-1322.18,0.000307,14]
[335150426,1723890751392,-465.21690923,0.0003074,2]
[335150427,1723890751403,-500.0,0.00030952,2]
[335150428,1723890751414,-285.23103403,0.00030952,2]
[335150429,1723890751425,-501.54,0.00030952,2]
[335150430,1723890751435,-500.0,0.00030952,2]
[335150431,1723890751446,-1683.39,0.00030952,2]
[335150432,1723890751455,-500.0,0.00030952,2]
[335150433,1723890751465,-500.0,0.00030952,2]
[335150434,1723890751475,-500.0,0.00030952,2]
[335150435,1723890751486,-547.89,0.00030952,2]
[335150436,1723890751495,-500.0,0.00030952,2]
[335150437,1723890751505,-500.0,0.00030952,2]
[335150438,1723890751515,-500.0,0.00030952,2]
[335150439,1723890751524,-765.7,0.00030952,2]
[335150440,1723890751533,-500.0,0.00030952,2]
[335150441,1723890751543,-500.0,0.00030952,2]
[335150442,1723890751553,-500.0,0.00030952,2]
[335150443,1723890751563,-633.9,0.00030952,2]
[335150444,1723890751573,-439.12657901,0.00030952,2]
[335150445,1723890751582,-500.0,0.00030952,2]
[335150446,1723890751592,-521.11,0.00030952,2]
[335150447,1723890751601,-500.0,0.00030952,2]
[335150448,1723890751611,-500.0,0.00030952,2]
[335150449,1723890751621,-500.0,0.00030952,2]
[335150450,1723890751631,-500.0,0.00030952,2]
[335150451,1723890751640,-775.16,0.00030952,2]
[335150452,1723890751651,-516.07758477,0.00030952,2]
[335150453,1723890751661,-571.1,0.00030952,2]
[335150454,1723890751671,-500.0,0.00030952,2]
[335150455,1723890751682,-668.62,0.00030952,2]
[335150456,1723890751692,-500.0,0.00030952,2]
[335150457,1723890751705,-731.12,0.00030952,2]
[335150458,1723890751716,-632.17,0.00030952,2]
[335150459,1723890751728,-500.0,0.00030952,2]
[335150460,1723890751740,-593.02,0.00030952,2]
[335150461,1723890751751,-656.84,0.00030952,2]
[335150462,1723890751762,-633.28,0.00030952,2]
[335150463,1723890751771,-500.0,0.00030952,2]
[335150464,1723890751781,-521.1,0.00030952,2]
[335150465,1723890751791,-644.86472159,0.00030952,2]
[335150466,1723890751801,-500.0,0.00030952,2]
[335150467,1723890751813,-764.51,0.00030952,2]
[335150468,1723890751823,-500.0,0.00030952,2]
[335150469,1723890751833,-500.0,0.00030952,2]
[335150470,1723890751842,-625.26,0.00030952,2]
[335150471,1723890751852,-500.0,0.00030952,2]
[335150472,1723890751862,-625.29,0.00030952,2]
[335150473,1723890751872,-500.0,0.00030958,2]
[335150474,1723890751882,-500.0,0.00030958,2]
[335150475,1723890751892,-500.0,0.00030958,2]
[335150476,1723890751901,-500.0,0.00030958,2]
[335150477,1723890751911,-500.0,0.00030958,2]
[335150478,1723890751921,-500.0,0.00030958,2]
[335150479,1723890751931,-500.0,0.00030958,2]
[335150480,1723890751941,-500.0,0.00030958,2]
[335150481,1723890751950,-500.0,0.00030958,2]
[335150482,1723890751959,-500.0,0.00030958,2]
[335150483,1723890751970,-561.21,0.00030958,2]
[335150484,1723890751980,-500.0,0.00030958,2]
[335150485,1723890751998,-500.0,0.00030958,2]
[335150486,1723890752009,-500.0,0.00030958,2]
[335150487,1723890752019,-500.0,0.00030958,2]
[335150488,1723890752029,-500.0,0.00030958,2]
[335150489,1723890752038,-500.0,0.00030958,2]
[335150490,1723890752049,-500.0,0.00031226,2]
[335150491,1723890752059,-501.54,0.00031226,2]
[335150492,1723890752073,-500.0,0.00031226,2]
[335150493,1723890752083,-1683.39,0.00031226,2]
[335150494,1723890752094,-500.0,0.00031226,2]
[335150495,1723890752103,-500.0,0.00031226,2]
[335150496,1723890752114,-151.50348386,0.00031226,2]
[335150497,1723890752125,-547.89,0.00031226,2]
[335150498,1723890752135,-504.84629069,0.00031226,2]
[335150499,1723890752149,-500.0,0.00031226,2]
[335150500,1723890752161,-500.0,0.00031226,2]
[335150501,1723890752172,-765.7,0.00031226,2]
[335150502,1723890752184,-500.0,0.00031226,2]
[335150503,1723890752196,-500.0,0.00031226,2]
[335150504,1723890752207,-500.0,0.00031226,2]
[335150505,1723890752219,-633.9,0.00031226,2]
[335150506,1723890752231,-500.0,0.00031226,2]
[335150507,1723890752240,-521.11,0.00031226,2]
[335150508,1723890752251,-500.0,0.00031226,2]
[335150509,1723890752263,-500.0,0.00031226,2]
[335150510,1723890752273,-500.0,0.00031226,2]
[335150511,1723890752283,-500.0,0.00031226,2]
[335150512,1723890752294,-775.16,0.00031226,2]
[335150513,1723890752303,-571.1,0.00031226,2]
[335150514,1723890752313,-500.0,0.00031226,2]
[335150515,1723890752322,-668.62,0.00031226,2]
[335150516,1723890752333,-500.0,0.00031226,2]
[335150517,1723890752343,-731.12,0.00031226,2]
[335150518,1723890752354,-632.17,0.00031226,2]
[335150519,1723890752365,-500.0,0.00031226,2]
[335150520,1723890752375,-593.02,0.00031226,2]
[335150521,1723890752385,-656.84,0.00031226,2]
[335150522,1723890752396,-633.28,0.00031226,2]
[335150523,1723890752406,-500.0,0.00031226,2]
[335150524,1723890752417,-521.1,0.00031226,2]
[335150525,1723890752427,-508.50000001,0.00031226,2]
[335150526,1723890752437,-764.51,0.00031226,2]
[335150527,1723890752447,-500.0,0.00031226,2]
[335150528,1723890752459,-513.90020451,0.00031226,2]
[335150529,1723890752469,-625.26,0.00031226,2]
[335150530,1723890752480,-500.0,0.00031226,2]
[335150531,1723890752491,-625.29,0.00031226,2]
[335150532,1723890752501,-500.0,0.00031232,2]
[335150533,1723890752511,-500.0,0.00031232,2]
[335150534,1723890752522,-500.0,0.00031232,2]
[335150535,1723890752534,-500.0,0.00031232,2]
[335150536,1723890752545,-500.0,0.00031232,2]
[335150537,1723890752555,-500.0,0.00031232,2]
[335150538,1723890752564,-500.0,0.00031232,2]
[335150539,1723890752573,-500.0,0.00031232,2]
[335150540,1723890752583,-500.0,0.00031232,2]
[335150541,1723890752595,-500.0,0.00031232,2]
[335150542,1723890752607,-561.21,0.00031232,2]
[335150543,1723890752619,-500.0,0.00031232,2]
[335150544,1723890752631,-500.0,0.00031232,2]
[335150545,1723890752642,-500.0,0.00031232,2]
[335150546,1723890752652,-500.0,0.00031232,2]
[335150547,1723890752661,-500.0,0.00031232,2]
[335150548,1723890752671,-500.0,0.00031232,2]
[335150549,1723890752681,-1000.0,0.00031232,2]
[335150550,1723890752691,-800.0,0.00031244,5]
[335150551,1723890752703,-153.0,0.00031248,2]
[335150552,1723890752712,-153.0,0.00031248,2]
[335150553,1723890752723,-153.0,0.00031248,2]
[335150554,1723890752733,-153.0,0.00031249,2]
[335150555,1723890752744,-153.0,0.00031249,2]
[335150556,1723890752754,-153.0,0.00031249,2]
[335150557,1723890752764,-153.0,0.00031249,2]
[335150558,1723890752775,-153.0,0.00031249,2]
[335150559,1723890752784,-800.0,0.00031254,4]
[335150560,1723890752794,-41777.821047,0.000314,120]
[335150561,1723890752807,-500.0,0.000315,2]
[335150562,1723890752817,-501.54,0.000315,2]
[335150563,1723890752827,-319.55954086,0.000315,2]
[335150564,1723890752836,-1683.39,0.000315,2]
[335150565,1723890752847,-500.0,0.000315,2]
[335150566,1723890752857,-500.0,0.000315,2]
[335150567,1723890752867,-547.89,0.000315,2]
[335150568,1723890752878,-500.0,0.000315,2]
[335150569,1723890752888,-500.0,0.000315,2]
[335150570,1723890752898,-765.7,0.000315,2]
[335150571,1723890752908,-500.0,0.000315,2]
[335150572,1723890752919,-500.0,0.000315,2]
[335150573,1723890752929,-500.0,0.000315,2]
[335150574,1723890752939,-633.9,0.000315,2]
[335150575,1723890752949,-500.0,0.000315,2]
[335150576,1723890752959,-521.11,0.000315,2]
[335150577,1723890752969,-500.0,0.000315,2]
[335150578,1723890752979,-500.0,0.000315,2]
[335150579,1723890752990,-500.0,0.000315,2]
[335150580,1723890753000,-500.0,0.000315,2]
[335150581,1723890753010,-775.16,0.000315,2]
[335150582,1723890753020,-571.1,0.000315,2]
[335150583,1723890753030,-500.0,0.000315,2]
[335150584,1723890753040,-668.62,0.000315,2]
[335150585,1723890753050,-500.0,0.000315,2]
[335150586,1723890753060,-731.12,0.000315,2]
[335150587,1723890753072,-632.17,0.000315,2]
[335150588,1723890753082,-354.0902701,0.000315,2]
[335150589,1723890753092,-593.02,0.000315,2]
[335150590,1723890753102,-656.84,0.000315,2]
[335150591,1723890753113,-633.28,0.000315,2]
[335150592,1723890753123,-500.0,0.000315,2]
[335150593,1723890753133,-521.1,0.000315,2]
[335150594,1723890753143,-764.51,0.000315,2]
[335150595,1723890753153,-500.0,0.000315,2]
[335150596,1723890753164,-625.26,0.000315,2]
[335150597,1723890753175,-509.04404385,0.000315,2]